bitfinex/quotes_ETHUSD_20250525
["timestamp","ask_amount","ask_price","bid_price","bid_amount"]
[1748134323568,1.2298,2488.2,2487.3,9.2043]
[1748134324922,1.2298,2488.2,2487.4,1.31289771]
[1748134325148,1.2298,2488.2,2487.4,1.2727]
[1748134326947,1.2078,2488.5,2487.5,12.026]
[1748134327155,1.2078,2488.5,2487.6,9.32987]
[1748134327521,1.2078,2488.5,2487.7,24.546]
[1748134327726,1.2078,2488.5,2487.8,12.026]
[1748134329034,1.2078,2488.5,2487.9,12.026]
[1748134329365,0.32925279,2488.4,2487.9,12.026]
[1748134329514,0.32925279,2488.4,2488.0,12.026]
[1748134330040,0.32925279,2488.4,2487.1,0.02]
[1748134330240,1.1958,2488.1,2487.1,0.02]
[1748134330415,1.1958,2487.9,2487.2,12.026]
[1748134331044,1.1958,2487.9,2487.3,12.026]
[1748134331669,1.1958,2487.9,2487.4,12.026]
[1748134332430,1.1958,2487.9,2487.1,0.02]
[1748134332667,1.1958,2487.9,2487.2,12.027]
[1748134333169,1.6365591,2487.9,2487.2,12.027]
[1748134333377,1.1958,2487.9,2487.2,12.027]
[1748134336395,1.1958,2487.9,2487.1,0.02]
[1748134336603,2.81385943,2486.2,2486.0,12.028]
[1748134336797,7.30924537,2486.1,2484.3,0.20937234]
[1748134337086,2.81385943,2485.3,2483.7,1.2646]
[1748134337232,7.02785943,2485.3,2483.1,0.02]
[1748134337427,12.214,2485.2,2483.1,1.2846]
[1748134337658,12.214,2485.2,2484.2,24.27]
[1748134337659,0.2289,2484.6,2484.2,24.27]
[1748134337856,0.2289,2484.6,2484.3,12.028]
[1748134338074,0.3998492,2484.6,2483.1,0.02]
[1748134338302,0.2289,2484.5,2484.2,12.028]
[1748134338668,0.55,2484.3,2483.1,0.02]
[1748134338903,2.81385943,2483.5,2483.1,0.02]
[1748134339604,2.81385943,2483.4,2483.1,0.02]
[1748134339770,0.2089,2483.3,2483.1,0.02]
[1748134339976,0.2089,2483.3,2483.2,12.033]
[1748134340174,1.1692,2483.8,2483.2,13.2383]
[1748134340376,1.1692,2483.8,2483.2,12.033]
[1748134340570,1.1692,2483.8,2483.1,0.02]
[1748134340798,1.1692,2483.8,2483.2,12.033]
[1748134341001,1.1692,2483.8,2483.1,0.02]
[1748134341385,1.1692,2483.8,2483.2,12.033]
[1748134341588,0.72755873,2483.7,2483.3,12.033]
[1748134341775,0.32925279,2483.6,2483.3,12.033]
[1748134341966,0.32925279,2483.6,2483.4,12.039]
[1748134342165,3.98305943,2483.5,2483.1,0.02]
[1748134342391,4.31231222,2483.5,2482.1,0.02]
[1748134342594,0.43123122,2483.4,2482.1,0.02]
[1748134342762,1.49845279,2483.5,2482.2,1.2646]
[1748134343205,3.11813537,2484.5,2482.2,1.2646]
[1748134343510,1.58275279,2484.4,2482.3,0.04026833]
[1748134343663,0.32925279,2484.3,2482.5,1.1699]
[1748134343858,0.32925279,2484.3,2482.6,12.043]
[1748134344059,0.32925279,2484.3,2482.7,1.32129]
[1748134344263,0.32925279,2484.3,2482.8,1.1699]
[1748134345505,0.32925279,2484.3,2483.0,8.0]
[1748134345802,1.2535,2484.2,2483.1,12.043]
[1748134346013,0.32925279,2484.1,2483.1,12.63598868]
[1748134346218,0.32925279,2484.1,2483.1,12.043]
[1748134347210,0.32925279,2484.1,2482.1,0.02]
[1748134347211,1.2535,2483.4,2482.1,0.02]
[1748134347380,2.81385943,2483.3,2483.2,12.043]
[1748134347578,2.81385943,2483.3,2483.2,53.692]
[1748134348080,2.81385943,2483.3,2483.2,12.043]
[1748134348269,3.22059537,2483.3,2482.1,0.02]
[1748134348469,3.22059537,2483.3,2482.2,12.045]
[1748134349208,1.2512,2483.2,2482.3,12.045]
[1748134350183,1.2512,2483.2,2481.5,1.2721]
[1748134351289,1.2512,2483.2,2481.6,12.048]
[1748134351491,1.2512,2483.2,2481.7,1.37118765]
[1748134351718,1.2512,2483.2,2481.7,1.32118765]
[1748134352022,1.2512,2483.2,2481.8,12.048]
[1748134352327,1.2512,2483.2,2481.7,1.32118765]
[1748134352508,1.2512,2483.0,2481.1,0.02]
[1748134352682,0.40650594,2482.9,2481.8,12.048]
[1748134352884,1.2512,2483.0,2481.8,12.048]
[1748134354321,1.2512,2483.0,2481.1,0.02]
[1748134354683,1.2512,2483.0,2481.3,8.0]
[1748134354920,1.2712,2482.0,2481.1,0.02]
[1748134355090,1.2712,2482.0,2481.4,12.049]
[1748134355293,1.67970594,2481.9,2481.4,12.049]
[1748134355694,1.2712,2481.9,2481.4,12.049]
[1748134356101,1.2712,2481.9,2481.1,0.02]
[1748134356423,1.2712,2481.9,2481.5,12.051]
[1748134356595,1.2712,2481.9,2481.1,0.02]
[1748134356799,1.2712,2481.9,2481.2,12.051]
[1748134357211,1.2712,2481.9,2481.1,0.02]
[1748134357412,0.1922,2481.1,2480.1,0.02]
[1748134357597,2.81385943,2480.8,2480.2,17.353]
[1748134357804,0.30060594,2480.8,2480.3,12.051]
[1748134357998,0.1922,2480.9,2480.4,12.051]
[1748134358318,18.55,2481.6,2479.2,12.051]
[1748134358319,4.214,2480.1,2479.2,12.051]
[1748134358521,0.55,2480.2,2479.2,12.051]
[1748134358522,1.1638,2479.4,2479.2,12.051]
[1748134359192,1.57143281,2479.4,2479.2,12.051]
[1748134360287,1.57143281,2479.4,2479.3,12.055]
[1748134360890,1.57143281,2479.4,2477.1,1.2691]
[1748134361429,1.57143281,2479.4,2478.2,12.055]
[1748134361602,1.1638,2479.4,2478.3,9.2075]
[1748134361957,1.57058238,2479.4,2478.4,12.055]
[1748134362250,1.1638,2479.9,2478.5,9.2491]
[1748134363746,1.2395,2480.8,2478.6,12.061]
[1748134363892,1.2395,2480.8,2478.7,8.0]
[1748134364242,1.2395,2480.8,2478.8,2.0061]
[1748134364546,1.2395,2480.8,2479.0,8.0]
[1748134365349,1.2395,2480.8,2478.8,2.0061]
[1748134365350,1.2395,2480.8,2479.1,1.2395]
[1748134365628,1.2395,2480.8,2479.3,8.0]
[1748134366709,1.2395,2480.8,2479.1,1.2395]
[1748134366904,1.2395,2480.8,2479.2,12.063]
[1748134367116,1.2395,2480.8,2479.3,1.33025]
[1748134367518,1.2395,2480.8,2479.4,60.314]
[1748134367723,1.2395,2480.8,2479.5,36.189]
[1748134367938,1.2395,2480.8,2479.5,12.063]
[1748134368716,1.2395,2480.8,2479.6,0.04032645]
[1748134368918,1.2395,2480.8,2479.6,1.21033265]
[1748134369499,1.2395,2480.8,2479.1,1.2395]
[1748134369845,1.2395,2480.8,2479.3,8.0]
[1748134370143,1.2395,2480.8,2479.5,8.0]
[1748134370320,1.2395,2480.8,2479.6,12.063]
[1748134370858,1.2395,2480.8,2478.2,1.2731]
[1748134371143,1.1695,2480.6,2478.3,12.063]
[1748134371444,1.1695,2480.6,2478.4,1.33361]
[1748134371633,1.1695,2480.6,2478.4,9.33361]
[1748134373754,1.1695,2480.6,2478.6,1.227]
[1748134374169,1.1695,2480.6,2478.7,12.065]
[1748134374867,1.1695,2480.6,2478.6,1.227]
[1748134375069,1.1695,2480.6,2478.8,12.065]
[1748134375230,1.1695,2480.6,2478.9,1.2065]
[1748134376674,1.1695,2480.6,2478.9,9.2065]
[1748134377283,1.1695,2480.6,2479.0,0.04032559]
[1748134377456,1.1695,2480.6,2479.2,8.0]
[1748134377640,1.1695,2480.6,2479.3,1.227]
[1748134377971,1.1695,2480.6,2479.4,0.9227]
[1748134378174,1.1695,2480.6,2479.6,8.0]
[1748134378476,1.1695,2480.6,2479.3,1.227]
[1748134378477,1.1695,2480.6,2478.9,2.4811]
[1748134378639,1.1695,2480.6,2479.7,12.065]
[1748134379272,1.1695,2480.6,2478.9,1.2746]
[1748134379473,1.1695,2480.6,2479.1,8.0]
[1748134380381,1.1695,2480.6,2479.2,12.065]
[1748134380683,1.1695,2480.6,2479.3,12.065]
[1748134380859,1.1695,2480.6,2479.4,1.2065]
[1748134381056,1.1695,2480.6,2478.5,1.2746]
[1748134381283,1.2499,2480.3,2478.1,1.2946]
[1748134381487,2.83494624,2479.4,2478.1,0.02]
[1748134381658,1.2499,2479.3,2478.2,12.066]
[1748134382432,1.2499,2479.3,2478.1,0.02]
[1748134382433,4.214,2478.8,2478.1,0.02]
[1748134382638,1.2499,2478.7,2478.1,0.02]
[1748134382806,0.46120689,2478.6,2478.2,12.068]
[1748134383007,1.2499,2478.5,2478.2,12.068]
[1748134383738,0.36473286,2478.4,2478.2,12.068]
[1748134384099,0.36473286,2478.4,2478.1,0.02]
[1748134384300,0.32925279,2478.3,2478.2,12.068]
[1748134384944,0.32925279,2478.3,2478.2,13.2768]
[1748134385140,1.2499,2479.0,2478.2,21.2768]
[1748134385440,1.2499,2479.0,2478.3,8.0]
[1748134386356,1.2499,2479.0,2477.5,1.14318536]
[1748134386503,1.2499,2479.0,2478.5,8.0]
[1748134386698,1.2499,2479.0,2477.5,1.14318536]
[1748134386897,1.2499,2479.0,2478.6,12.07]
[1748134387141,1.2499,2479.0,2477.5,1.14318536]
[1748134387496,1.2499,2479.0,2477.6,36.212]
[1748134387697,1.2499,2479.0,2477.7,3.73551854]
[1748134387939,1.2499,2479.0,2477.8,12.07]
[1748134388300,1.2499,2479.4,2477.9,0.04033971]
[1748134388497,0.46120689,2479.6,2477.8,12.07]
[1748134388703,0.46120689,2479.6,2477.9,0.04032836]
[1748134388902,0.46120689,2479.6,2478.0,12.07]
[1748134389442,0.46120689,2479.6,2478.1,1.3149302]
[1748134389798,1.85118912,2479.8,2478.0,12.46455475]
[1748134389799,1.2499,2479.8,2478.2,0.04032614]
[1748134390003,1.2499,2479.8,2478.3,1.2066]
[1748134390243,0.02,2479.9,2478.4,0.04032937]
[1748134390413,0.02,2479.9,2478.5,1.2066]
[1748134392346,0.02,2479.9,2478.7,5.1872]
[1748134392505,1.76068912,2481.0,2478.9,1.2066]
[1748134392845,1.1594,2481.0,2479.2,1.2066]
[1748134393429,1.1594,2481.0,2479.4,8.0]
[1748134393637,1.1594,2481.0,2479.6,1.2515]
[1748134394707,1.1594,2481.0,2479.7,12.067]
[1748134394912,1.1594,2481.0,2479.8,1.33185]
[1748134395767,1.1594,2481.0,2479.6,1.2515]
[1748134395904,1.2169,2480.8,2479.2,1.2515]
[1748134396107,1.2169,2480.8,2479.3,12.067]
[1748134397145,1.2169,2480.8,2479.4,12.067]
[1748134397346,1.2169,2480.8,2479.5,1.2067]
[1748134397554,1.2169,2480.8,2479.6,48.124]
[1748134397849,1.2169,2480.8,2479.7,8.0]
[1748134398019,1.2169,2480.8,2479.5,9.2067]
[1748134399167,1.2406,2480.5,2479.6,12.066]
[1748134399672,1.2406,2480.4,2478.1,0.025]
[1748134399869,1.2406,2480.4,2478.2,12.40285037]
[1748134400029,1.2406,2480.4,2478.3,0.33683678]
[1748134400227,1.2406,2480.4,2478.3,9.57962046]
[1748134400666,1.2406,2480.1,2478.3,1.57962046]
[1748134400827,1.2406,2480.0,2478.4,12.066]
[1748134401161,1.2406,2480.0,2478.5,0.3368096]
[1748134401828,1.2406,2479.8,2478.5,0.3368096]
[1748134403444,1.1589,2479.6,2478.6,12.067]
[1748134403670,1.1589,2479.6,2478.7,0.33678242]
[1748134403971,1.1589,2479.6,2478.8,12.067]
[1748134404271,1.1589,2479.6,2478.9,0.33675525]
[1748134404928,1.1589,2479.6,2479.0,0.0403373]
[1748134405128,1.1589,2479.6,2478.9,9.57713077]
[1748134406178,1.1589,2480.3,2479.0,0.04033121]
[1748134406473,1.1589,2480.3,2478.9,9.57713077]
[1748134406675,1.1589,2480.3,2478.9,0.33675525]
[1748134406857,1.1589,2480.3,2479.0,12.068]
[1748134407667,1.1589,2480.3,2479.1,48.129]
[1748134407881,1.1589,2480.3,2479.1,12.068]
[1748134408031,0.36537602,2480.2,2479.1,12.068]
[1748134408376,1.1589,2480.1,2479.1,12.068]
[1748134409177,1.1589,2480.1,2478.1,0.025]
[1748134409575,1.1589,2480.1,2478.2,12.068]
[1748134409766,1.1589,2480.1,2478.3,0.04033384]
[1748134410272,1.1589,2480.1,2478.2,12.068]
[1748134410471,1.1589,2480.1,2478.3,1.2093]
[1748134411761,1.1589,2480.1,2478.4,0.04032957]
[1748134411976,1.1589,2480.1,2478.5,1.2167]
[1748134412136,1.1589,2480.1,2478.7,1.2167]
[1748134412337,1.1589,2480.5,2478.9,1.2167]
[1748134412964,1.1589,2480.5,2478.9,1.62709148]
[1748134413786,1.1589,2480.5,2479.1,8.0]
[1748134413951,1.1589,2480.5,2479.2,2.0068]
[1748134414149,1.1589,2480.5,2479.3,9.2167]
[1748134414498,0.02,2480.9,2479.5,0.2]
[1748134414815,0.02,2480.9,2479.6,9.11253395]
[1748134415103,0.02,2481.9,2479.7,1.2167]
[1748134415243,0.02,2481.9,2479.9,1.2167]
[1748134415450,0.02,2481.9,2480.0,0.61968213]
[1748134415773,0.02,2481.9,2480.2,1.2167]
[1748134415959,0.02,2481.9,2480.3,12.68468213]
[1748134416158,0.02,2481.9,2480.3,0.61968213]
[1748134416364,0.02,2481.9,2480.4,12.28936771]
[1748134416663,0.02,2481.9,2480.5,0.61968213]
[1748134416990,0.02,2481.9,2480.6,1.2167]
[1748134417149,0.02,2481.9,2480.7,0.61968213]
[1748134417351,0.02,2481.9,2480.8,0.04028714]
[1748134417645,0.02,2481.9,2481.0,1.2167]
[1748134417845,0.02,2481.9,2481.1,0.65996286]
[1748134418161,0.02,2482.9,2481.2,1.1754]
[1748134418364,1.3021,2482.9,2481.3,0.61968213]
[1748134418552,1.3021,2482.9,2481.4,1.1754]
[1748134418752,1.3021,2482.9,2481.5,0.61968213]
[1748134418990,1.3021,2482.9,2481.6,0.55]
[1748134419160,0.02,2482.9,2481.8,0.55]
[1748134419361,0.02,2482.9,2482.0,0.55]
[1748134419629,0.02,2482.9,2482.0,1.16968213]
[1748134419888,0.02,2482.9,2482.2,8.55]
[1748134420189,0.02,2482.9,2482.0,1.01731855]
[1748134420394,0.02,2482.9,2482.2,8.0]
[1748134420588,0.02,2482.9,2482.0,0.55]
[1748134420589,0.02,2482.9,2482.4,8.0]
[1748134420951,0.02,2482.9,2482.4,9.8066372]
[1748134421351,0.02,2482.9,2482.5,0.55]
[1748134422574,0.02,2482.9,2482.6,12.058]
[1748134423583,0.02,2482.9,2482.5,0.55]
[1748134423774,0.02,2482.9,2482.3,0.55]
[1748134423975,0.02,2482.9,2482.6,12.058]
[1748134424661,1.2464,2482.8,2481.9,0.61968213]
[1748134424867,1.2464,2482.8,2482.0,12.056]
[1748134425091,1.2464,2482.8,2482.0,12.39233465]
[1748134425500,1.2464,2482.8,2482.1,0.3363211]
[1748134426114,1.2464,2482.8,2482.1,9.57555321]
[1748134426409,1.2464,2482.8,2482.1,1.57555321]
[1748134426611,1.2464,2482.8,2482.1,9.57555321]
[1748134427514,1.2464,2482.8,2482.2,47.947]
[1748134427804,1.2464,2482.8,2482.3,0.336294]
[1748134428508,1.2464,2482.8,2482.4,12.055]
[1748134428714,1.2464,2482.8,2482.5,0.33626691]
[1748134429079,1.2464,2482.8,2482.6,12.055]
[1748134429284,1.2464,2482.8,2482.5,0.33626691]
[1748134429480,1.2464,2482.8,2481.5,0.55]
[1748134429710,1.2464,2482.8,2481.7,8.55]
[1748134429911,1.2464,2482.8,2481.8,2.0605]
[1748134431469,1.2464,2482.8,2481.9,8.55]
[1748134432828,0.02,2482.9,2482.1,0.55]
[1748134435979,0.02,2482.9,2482.3,0.55]
[1748134437425,0.02,2482.9,2482.3,8.55]
[1748134437740,0.02,2482.9,2482.5,8.55]
[1748134439234,0.02,2482.9,2482.6,12.053]
[1748134439438,0.02,2482.9,2482.7,8.0]
[1748134439632,0.02,2482.9,2482.4,2.0604]
[1748134439924,0.02,2482.9,2482.8,8.0]
[1748134440437,0.02,2482.9,2481.6,1.1635]
[1748134440603,1.2826,2482.8,2481.6,1.1635]
[1748134440798,1.2826,2482.8,2481.7,12.052]
[1748134441027,1.2826,2482.8,2481.8,1.2052]
[1748134441333,1.2826,2482.8,2481.9,12.052]
[1748134442125,1.2826,2482.8,2481.9,12.46309205]
[1748134443017,1.2826,2482.8,2481.5,1.1635]
[1748134443335,1.2826,2482.8,2482.0,12.052]
[1748134444000,1.2826,2482.8,2482.1,8.0]
[1748134444226,1.2826,2482.8,2482.2,2.0052]
[1748134445020,1.2826,2482.8,2482.4,8.0]
[1748134445219,0.02,2482.9,2482.4,8.0]
[1748134447546,0.02,2482.9,2482.5,47.929]
[1748134448133,0.02,2482.9,2482.2,3.1687]
[1748134448333,1.1665,2482.8,2480.4,0.42436771]
[1748134448538,1.1665,2482.8,2480.6,1.3845]
[1748134448738,1.1665,2482.8,2480.7,0.45255397]
[1748134448950,1.1665,2482.8,2480.8,1.1845]
[1748134449156,1.1665,2482.8,2480.9,0.45255397]
[1748134449355,1.1665,2482.8,2481.0,1.40931196]
[1748134449551,1.1665,2482.8,2481.1,0.45255397]
[1748134449742,1.1665,2482.8,2481.2,12.051]
[1748134450064,1.1665,2482.8,2481.2,12.38744309]
[1748134450264,1.16184343,2482.8,2481.2,12.38744309]
[1748134450436,1.16184343,2482.8,2481.3,1.28399971]
[1748134450980,1.16184343,2482.8,2481.5,8.0]
[1748134451152,1.16184343,2482.8,2481.6,1.22477924]
[1748134451353,1.16184343,2482.8,2481.6,1.63705397]
[1748134451662,1.11184343,2482.8,2481.6,1.63705397]
[1748134451969,0.02,2482.9,2481.6,1.63705397]
[1748134452150,0.02,2482.9,2481.7,8.9637054]
[1748134452343,0.02,2482.9,2481.7,1.41625937]
[1748134454179,0.02,2482.9,2481.8,0.45255397]
[1748134454463,0.02,2482.9,2481.9,1.194]
[1748134454664,0.02,2482.9,2481.9,1.64655397]
[1748134455035,1.2048,2483.1,2481.9,1.64655397]
[1748134455368,0.36879671,2483.8,2481.9,1.64655397]
[1748134455568,0.02,2483.9,2482.0,0.45255397]
[1748134456128,0.02,2483.9,2482.1,1.23426225]
[1748134456369,0.02,2483.9,2482.2,0.45255397]
[1748134456571,0.02,2483.9,2482.3,1.194]
[1748134456877,0.02,2483.9,2482.4,12.051]
[1748134457071,0.02,2483.9,2482.5,1.3245]
[1748134457276,0.02,2483.9,2482.5,12.051]
[1748134457483,0.02,2483.9,2482.6,24.102]
[1748134457684,0.02,2483.9,2482.7,8.0]
[1748134457868,0.02,2483.9,2482.8,12.049]
[1748134458072,1.2348,2483.8,2482.9,8.0]
[1748134458276,1.2348,2483.8,2483.0,2.0049]
[1748134459750,1.2348,2483.8,2483.2,8.0]
[1748134460190,1.2348,2483.8,2483.4,8.0]
[1748134460385,1.2348,2483.8,2483.0,2.0049]
[1748134460561,1.2348,2483.8,2482.8,0.13359404]
[1748134460758,1.2348,2483.8,2482.3,9.58925246]
[1748134460759,1.2348,2483.8,2482.3,1.58925246]
[1748134461375,1.2348,2483.8,2482.4,12.049]
[1748134461885,1.2348,2483.8,2482.5,0.04025966]
[1748134462058,1.2348,2483.8,2482.5,0.04025967]
[1748134462396,1.2348,2483.8,2482.5,1.42206003]
[1748134463360,1.2348,2483.8,2482.5,1.38180036]
[1748134463883,1.2348,2483.8,2482.6,12.048]
[1748134464071,1.2348,2483.8,2482.7,12.048]
[1748134466388,1.2348,2483.8,2482.8,8.0]
[1748134467694,1.2348,2483.8,2483.0,8.0]
[1748134467993,1.2348,2483.8,2482.5,0.45255397]
[1748134468284,1.2348,2483.8,2482.6,12.048]
[1748134468585,1.2348,2483.8,2482.7,1.2048]
[1748134468788,1.2348,2483.8,2482.2,0.13671428]
[1748134468945,1.2348,2483.8,2482.8,12.048]
[1748134469286,1.2348,2483.8,2481.6,0.39174114]
[1748134469444,1.2348,2483.8,2482.9,12.048]
[1748134471193,1.2348,2483.8,2482.2,0.13954031]
[1748134471393,1.2348,2483.8,2483.0,12.048]
[1748134471549,1.2348,2483.8,2482.2,0.13784742]
[1748134471754,1.2348,2483.8,2482.4,8.0]
[1748134471953,1.2348,2483.8,2482.5,2.0048]
[1748134474682,1.2348,2483.8,2482.7,8.0]
[1748134474878,1.2348,2483.8,2482.8,0.04026441]
[1748134475178,1.2348,2483.8,2483.0,8.0]
[1748134475426,1.2348,2483.8,2483.1,12.049]
[1748134476204,1.2348,2483.8,2483.2,12.049]
[1748134476405,1.2348,2483.8,2483.3,12.049]
[1748134477642,1.2348,2483.8,2483.4,47.773]
[1748134478837,1.2348,2483.8,2483.4,23.676]
[1748134479039,1.2348,2483.8,2483.5,12.049]
[1748134480502,1.2348,2483.8,2483.6,12.049]
[1748134481454,1.2348,2483.8,2483.7,12.049]
[1748134487547,1.2348,2483.8,2483.7,59.63]
[1748134488767,1.2348,2483.8,2483.7,35.533]
[1748134488971,1.2348,2483.8,2482.7,0.95047261]
[1748134489280,1.2348,2483.8,2482.8,12.048]
[1748134489461,1.2348,2483.8,2482.9,1.2048]
[1748134491947,1.2348,2483.8,2483.0,12.048]
[1748134492159,1.2348,2483.8,2483.1,12.048]
[1748134492977,1.2348,2483.8,2482.4,0.45255397]
[1748134493180,1.2348,2483.8,2483.2,12.048]
[1748134493677,1.2348,2483.8,2482.4,0.45255397]
[1748134493881,1.2348,2483.8,2481.7,0.95047261]
[1748134494082,1.2348,2483.8,2481.8,1.1812]
[1748134494266,1.1721,2483.7,2481.9,0.22795756]
[1748134494453,1.541137,2483.7,2482.0,12.048]
[1748134494646,1.1721,2483.6,2482.0,12.048]
[1748134495258,0.369037,2483.5,2482.1,12.049]
[1748134495471,1.1721,2483.4,2482.1,12.049]
[1748134495670,1.1721,2483.4,2482.2,1.29994726]
[1748134496680,1.1721,2483.4,2482.3,0.49791864]
[1748134497581,1.1721,2483.4,2482.5,8.0]
[1748134498190,1.1721,2483.4,2482.4,1.1812]
[1748134499142,1.1721,2483.4,2482.4,1.67911864]
[1748134499342,1.1721,2483.4,2482.5,0.96791186]
[1748134499968,1.1721,2483.4,2482.6,0.49791864]
[1748134500973,1.1721,2483.4,2482.2,1.29994726]
[1748134501288,1.1721,2483.4,2481.0,1.57098468]
[1748134501289,1.2328,2483.3,2481.1,1.249]
[1748134501782,1.2328,2483.3,2481.7,12.05]
[1748134501984,0.82137979,2483.2,2481.7,12.05]
[1748134502189,1.2328,2483.1,2481.7,12.05]
[1748134502408,1.43821798,2483.0,2481.8,1.205]
[1748134502982,1.43821798,2483.0,2481.9,12.05]
[1748134503287,1.2171,2482.7,2482.0,12.05]
[1748134505683,1.2171,2482.7,2482.1,12.051]
[1748134506809,1.2171,2482.7,2482.1,13.2561]
[1748134507703,1.2171,2482.7,2482.2,30.243]
[1748134508310,1.2171,2482.7,2482.1,1.2051]
[1748134508511,1.2171,2482.7,2481.1,1.184]
[1748134508813,1.2171,2482.7,2481.2,12.054]
[1748134509017,1.2171,2482.7,2481.1,0.02]
[1748134509187,1.2171,2482.7,2481.3,12.054]
[1748134509969,2.83156909,2482.1,2481.1,0.02]
[1748134510192,0.2296,2481.9,2481.1,0.02]
[1748134511397,0.2296,2481.9,2481.2,12.054]
[1748134511594,0.2296,2481.9,2481.1,0.02]
[1748134511595,3.06116909,2481.9,2481.1,0.02]
[1748134511797,1.2327,2481.8,2481.1,0.02]
[1748134511999,0.2296,2481.7,2481.1,0.02]
[1748134512171,2.83156909,2481.3,2480.3,0.005]
[1748134513019,2.83156909,2480.7,2478.3,1.2641]
[1748134513170,0.2096,2480.3,2479.2,12.056]
[1748134513514,0.2096,2480.3,2479.3,12.056]
[1748134513726,0.2096,2480.2,2478.0,1.2641]
[1748134513914,0.2096,2480.1,2479.4,12.056]
[1748134514712,0.2096,2480.1,2479.5,12.056]
[1748134514919,0.2096,2480.1,2478.8,0.45255397]
[1748134515135,0.2096,2480.1,2477.9,1.2641]
[1748134515297,0.2096,2480.1,2479.2,12.056]
[1748134515831,0.2096,2480.1,2479.2,13.2636]
[1748134516334,0.2096,2480.1,2479.2,1.2076]
[1748134516494,0.2096,2480.1,2479.3,12.061]
[1748134516895,0.2096,2480.1,2477.9,1.2641]
[1748134517313,0.2096,2480.1,2479.2,12.061]
[1748134517508,0.21494928,2480.4,2479.3,40.662]
[1748134517710,2.83156909,2480.5,2479.3,40.662]
[1748134518017,2.83156909,2480.5,2479.2,12.061]
[1748134518406,2.83156909,2480.5,2479.3,12.061]
[1748134519545,12.2947,2480.0,2479.4,12.064]
[1748134520529,1.2327,2479.9,2479.4,12.064]
[1748134520914,1.2327,2479.9,2479.5,12.067]
[1748134521135,12.2947,2480.0,2477.5,1.14318536]
[1748134521933,2.83156909,2479.2,2476.0,0.3]
[1748134522137,0.2,2477.5,2474.5,1.57098468]
[1748134522402,3.03156909,2475.6,2475.5,8.7304]
[1748134522611,12.70671409,2475.6,2475.5,6.85472812]
[1748134522915,0.2,2475.2,2474.2,12.067]
[1748134523128,0.2,2475.2,2474.1,0.02]
[1748134523452,0.2,2475.2,2475.1,12.087]
[1748134523625,4.52233367,2475.2,2475.1,0.02]
[1748134523819,0.2,2473.5,2473.0,1.28058361]
[1748134524220,0.2,2473.3,2471.6,3.24599104]
[1748134524420,8.0,2474.9,2473.2,12.067]
[1748134524421,0.2,2473.5,2473.2,12.067]
[1748134524653,0.2,2473.3,2471.6,3.24599104]
[1748134524949,0.2,2473.3,2473.2,12.076]
[1748134525249,0.2,2473.3,2471.6,2.02369104]
[1748134525450,0.2,2473.3,2471.4,0.0040404]
[1748134525753,0.4458926,2474.5,2473.2,12.076]
[1748134525955,6.642,2474.1,2471.5,1.2223]
[1748134526126,4.32233367,2474.0,2473.3,12.076]
[1748134526307,10.0,2474.6,2473.3,12.076]
[1748134526852,4.32233367,2474.3,2471.5,1.2223]
[1748134527055,0.36137341,2474.7,2472.2,12.41366791]
[1748134527256,4.32233367,2474.5,2472.3,13.65702104]
[1748134527416,0.77395404,2474.7,2472.4,0.33764059]
[1748134527619,0.36137341,2474.7,2472.5,8.0]
[1748134527857,4.32233367,2474.6,2472.3,1.24336679]
[1748134528051,0.36137341,2474.7,2472.4,12.082]
[1748134528251,0.77008308,2474.7,2472.5,12.082]
[1748134528454,8.0,2474.3,2472.2,0.45293408]
[1748134528656,8.0,2473.8,2472.6,12.082]
[1748134529010,0.32925279,2473.7,2472.6,12.082]
[1748134529443,8.0,2473.3,2472.2,0.45293408]
[1748134529643,8.0,2473.3,2471.4,0.0040404]
[1748134529644,4.32233367,2472.9,2472.3,12.089]
[1748134529912,0.32925279,2472.8,2470.0,1.63396348]
[1748134530155,0.32925279,2472.8,2470.1,1.1791]
[1748134530360,0.32925279,2472.8,2470.3,1.1791]
[1748134530726,0.32925279,2472.8,2470.4,0.68694313]
[1748134530911,0.32925279,2472.8,2470.5,13.2681]
[1748134531117,0.32925279,2472.8,2470.7,1.1791]
[1748134531412,4.8704,2474.4,2471.6,0.2]
[1748134531615,0.4458926,2475.8,2471.7,0.68691522]
[1748134531860,0.4458926,2475.8,2471.8,9.1791]
[1748134532012,0.02,2472.9,2472.0,8.0]
[1748134532216,0.02,2473.9,2472.1,8.60564603]
[1748134532530,0.02,2473.9,2472.2,0.43752791]
[1748134532730,0.02,2473.9,2472.3,12.69564603]
[1748134532960,0.02,2473.9,2472.0,8.0]
[1748134532961,0.02,2473.9,2472.5,8.0]
[1748134533168,0.02,2473.9,2472.5,7.88454124]
[1748134533676,0.02,2473.9,2472.4,12.09]
[1748134533677,0.02,2473.9,2472.6,12.09]
[1748134534084,12.34233367,2475.9,2472.6,12.09]
[1748134534085,0.04,2475.7,2472.7,0.04042107]
[1748134534235,0.02,2475.9,2472.9,0.2]
[1748134534581,0.02,2475.9,2473.0,1.24315289]